bitfinex-derivatives/quotes_SOLF0:USTF0_20260302
["timestamp","ask_amount","ask_price","bid_price","bid_amount"]
[1772424889415,13.44687261,84.584,84.551,13.59337134]
[1772424900830,13.44687261,84.584,84.56,3.83246745]
[1772424901525,13.44687261,84.584,84.551,13.59337134]
[1772424904725,13.44687261,84.584,84.503,22.12341851]
[1772424904931,10.97900273,84.599,84.502,23.10090852]
[1772424905136,3.83246745,84.56,84.511,23.10090852]
[1772424906231,3.83246745,84.57,84.53,26.92975319]
[1772424906927,10.6396,84.595,84.541,22.9922798]
[1772424907127,3.83246745,84.59,84.541,22.9922798]
[1772424907530,3.83246745,84.58,84.541,22.9922798]
[1772424912132,3.83246745,84.59,84.541,22.9922798]
[1772424912336,2.95581672,84.639,84.495,0.02]
[1772424912337,3.83246745,84.6,84.561,22.99357703]
[1772424913640,10.6392,84.599,84.561,22.99357703]
[1772424915938,10.97347926,84.63,84.525,22.12341851]
[1772424915939,3.83246745,84.59,84.525,22.12341851]
[1772424916136,3.83246745,84.56,84.521,23.00984712]
[1772424917549,3.83246745,84.57,84.521,23.00984712]
[1772424918748,10.643,84.568,84.521,23.00984712]
[1772424918947,3.83246745,84.56,84.521,23.00984712]
[1772424919139,10.6442,84.559,84.51,26.78063046]
[1772424919542,3.83246745,84.55,84.51,26.78063046]
[1772424928954,10.6442,84.559,84.521,23.00671721]
[1772424931358,10.643,84.569,84.531,23.00734244]
[1772424933254,10.6439,84.561,84.531,23.00734244]
[1772424934550,10.6443,84.558,84.531,23.00734244]
[1772424936558,10.6443,84.558,84.495,0.02]
[1772424936559,3.83785823,84.54,84.495,22.99890409]
[1772424936754,467.33576902,84.558,84.495,22.99890409]
[1772424936958,3.83785823,84.54,84.495,22.99890409]
[1772424937163,10.6467,84.539,84.495,22.99890409]
[1772424939667,3.83785823,84.53,84.495,22.99890409]
[1772424940166,10.6481,84.529,84.495,22.99890409]
[1772424940562,3.83785823,84.53,84.495,22.99890409]
[1772424940763,3.83785823,84.54,84.495,22.99890409]
[1772424941864,3.83785823,84.53,84.495,22.99890409]
[1772424944062,10.6468,84.539,84.495,22.99890409]
[1772424945262,10.6456,84.548,84.501,22.55633181]
[1772424945466,467.33576902,84.558,84.521,22.55633181]
[1772424955378,3.83785823,84.57,84.531,22.52628339]
[1772424955669,3.83785823,84.56,84.52,26.36190009]
[1772424957280,10.6433,84.567,84.52,26.36190009]
[1772424957681,3.83785823,84.57,84.531,22.5547501]
[1772424958276,10.643,84.569,84.531,22.5547501]
[1772424959976,8.80750185,84.584,84.495,0.02]
[1772424959977,3.83785823,84.55,84.511,22.67792617]
[1772424960578,3.83785823,84.54,84.511,22.67792617]
[1772424964483,3.83785823,84.55,84.511,22.67792617]
[1772424965985,10.6455,84.549,84.511,22.67792617]
[1772424969488,3.83785823,84.54,84.511,22.67792617]
[1772424970180,10.6455,84.549,84.511,22.67792617]
[1772424973083,3.83785823,84.56,84.511,22.67792617]
[1772424974386,3.83785823,84.55,84.511,22.67792617]
[1772424975781,10.6433,84.566,84.511,22.67792617]
[1772424975782,3.83785823,84.56,84.511,22.67792617]
[1772424975986,3.83785823,84.56,84.521,22.70378829]
[1772424976190,10.6422,84.575,84.521,22.70378829]
[1772424976191,3.83785823,84.57,84.521,22.70378829]
[1772424976391,8.80750185,84.584,84.521,22.70378829]
[1772424976392,3.83785823,84.56,84.521,22.70378829]
[1772424978397,3.83785823,84.57,84.531,22.69146167]
[1772424980301,3.83785823,84.56,84.531,22.69146167]
[1772424980501,3.83785823,84.56,84.511,22.80549466]
[1772424981095,10.6442,84.559,84.511,22.80549466]
[1772424981704,3.83785823,84.55,84.511,22.80549466]
[1772424981903,3.83785823,84.54,84.511,22.80549466]
[1772424982206,3.83785823,84.55,84.511,22.80549466]
[1772424983505,14.48325823,84.55,84.511,22.80549466]
[1772424984102,3.83785823,84.54,84.511,22.80549466]
[1772424984706,14.48325823,84.55,84.511,22.80549466]
[1772424986301,3.83785823,84.55,84.511,22.80549466]
[1772424988207,3.83785823,84.54,84.511,22.80549466]
[1772424990502,3.83915972,84.54,84.511,22.80549466]
[1772424993309,14.48575972,84.54,84.511,22.80549466]
[1772424994104,3.83915972,84.54,84.511,22.80549466]
[1772424998011,10.6467,84.539,84.511,22.80549466]
[1772424998210,3.83915972,84.54,84.511,22.80549466]
[1772425005015,3.83915972,84.55,84.511,22.80549466]
[1772425006411,14.48455972,84.55,84.511,22.80549466]
[1772425013407,3.83915972,84.55,84.511,22.80549466]
[1772425013607,10.6443,84.558,84.511,22.80549466]
[1772425013813,3.83915972,84.55,84.511,22.80549466]
[1772425021824,2.95733258,84.574,84.521,22.67534947]
[1772425022023,3.83915972,84.58,84.531,22.67534947]
[1772425024622,3.83915972,84.58,84.541,22.68109326]
[1772425027418,3.83915972,84.57,84.541,22.68109326]
[1772425034034,10.6418,84.578,84.541,22.68109326]
[1772425037741,2.05853211,84.581,84.541,22.68109326]
[1772425037946,3.83915972,84.58,84.541,22.68109326]
[1772425038438,3.83915972,84.57,84.541,22.68109326]
[1772425041545,14.48075972,84.58,84.541,22.68109326]
[1772425042343,1.68469481,84.549,84.5,3.83915972]
[1772425042544,1.68469481,84.549,84.497,285.2347954]
[1772425042545,3.83915972,84.53,84.497,285.2347954]
[1772425043950,1.68469481,84.539,84.497,285.2347954]
[1772425044550,1.68469481,84.539,84.498,13.88977493]
[1772425045952,3.83915972,84.53,84.498,13.88977493]
[1772425047054,3.83915972,84.54,84.498,13.88977493]
[1772425047752,3.83915972,84.54,84.501,13.88722584]
[1772425052159,3.83915972,84.55,84.511,14.00174835]
[1772425052558,3.83833043,84.55,84.511,14.00174835]
[1772425053761,3.83833043,84.54,84.511,14.00174835]
[1772425054562,3.83833043,84.53,84.5,14.02178579]
[1772425059266,8.65113327,84.578,84.497,285.2347954]
[1772425059267,3.83833043,84.56,84.52,3.83833043]
[1772425059465,3.83833043,84.56,84.521,14.09047016]
[1772425059857,10.6443,84.558,84.521,14.09047016]
[1772425060064,3.83833043,84.57,84.531,14.09145334]
[1772425060968,3.83833043,84.58,84.531,14.09145334]
[1772425062068,3.83833043,84.58,84.541,14.18861402]
[1772425063364,10.97347926,84.622,84.541,14.18861402]
[1772425063568,3.83833043,84.61,84.561,14.2324928]
[1772425063775,3.83833043,84.6,84.561,14.2324928]
[1772425064169,10.6369,84.617,84.561,14.2324928]
[1772425064371,3.83833043,84.6,84.561,14.2324928]
[1772425065571,3.83833043,84.61,84.571,14.32695141]
[1772425069171,3.83833043,84.59,84.551,14.61430785]
[1772425071476,10.6392,84.599,84.551,14.61430785]
[1772425071676,3.83833043,84.6,84.56,3.83833043]
[1772425071875,3.83833043,84.61,84.561,14.55384751]
[1772425072277,3.83833043,84.61,84.571,14.55384751]
[1772425074981,3.83833043,84.6,84.571,14.55384751]
[1772425075479,3.83833043,84.61,84.571,14.55384751]
[1772425077288,10.6379,84.609,84.571,14.55384751]
[1772425078380,3.83833043,84.61,84.571,14.55384751]
[1772425080585,10.6368,84.618,84.571,14.55384751]
[1772425081685,3.83833043,84.61,84.571,14.55384751]
[1772425082684,10.6368,84.618,84.571,14.55384751]
[1772425083587,10.6356,84.627,84.581,14.55626307]
[1772425083788,21.2577,84.682,84.591,14.55686386]
[1772425083985,3.83833043,84.65,84.601,14.55686386]
[1772425084188,3.83833043,84.65,84.61,3.83833043]
[1772425084387,3.83833043,84.67,84.621,14.55686386]
[1772425085597,3.83833043,84.66,84.621,14.55686386]
[1772425087295,3.83833043,84.67,84.621,14.55686386]
[1772425087489,314.60807747,84.725,84.621,14.55686386]
[1772425087795,3.83833043,84.66,84.621,14.55686386]
[1772425091602,10.6305,84.668,84.621,14.55686386]
[1772425091896,3.83833043,84.66,84.621,14.55686386]
[1772425092996,3.83833043,84.65,84.556,14.54775908]
[1772425093204,3.83833043,84.58,84.536,14.54775908]
[1772425093404,2.26866494,84.603,84.536,14.54775908]
[1772425093591,3.83833043,84.58,84.536,14.54775908]
[1772425093795,3.83833043,84.58,84.541,13.45533969]
[1772425093997,3.83833043,84.59,84.541,13.45533969]
[1772425094304,3.83833043,84.55,84.521,12.88819293]
[1772425094604,3.83833043,84.54,84.509,12.88819293]
[1772425094803,3.83833043,84.56,84.51,3.83833043]
[1772425095101,3.83833043,84.58,84.531,12.88819293]
[1772425097198,165.4206,84.639,84.497,285.2347954]
[1772425097199,3.83833043,84.6,84.551,12.64922504]
[1772425097702,3.83833043,84.61,84.561,12.64922504]
[1772425098905,10.638,84.609,84.561,12.64922504]
[1772425100401,7.14117949,84.608,84.509,12.64922504]
[1772425100706,3.83833043,84.57,84.521,12.64922504]
[1772425101002,3.83833043,84.58,84.531,12.64922504]
[1772425101607,7.1344774,84.592,84.541,12.64922504]
[1772425101808,7.1344774,84.592,84.55,3.83833043]
[1772425102306,7.1344774,84.592,84.541,12.64922504]
[1772425102307,17.7695118,84.599,84.551,12.64922504]
[1772425102507,3.83833043,84.58,84.551,2.504e-05]
[1772425103010,3.83833043,84.58,84.53,3.83833043]
[1772425103408,12.53381371,84.584,84.53,3.83833043]
[1772425103807,12.53381371,84.584,84.54,3.83833043]
[1772425104510,12.53381371,84.584,84.531,12.64922504]
[1772425104705,10.6414,84.582,84.531,12.64922504]
[1772425105109,10.6414,84.582,84.54,3.83833043]
[1772425105305,12.53381371,84.598,84.551,12.64922504]
[1772425105506,12.53381371,84.598,84.497,285.2347954]
[1772425105507,465.10742706,84.603,84.561,12.64922504]
[1772425108015,12.53381371,84.599,84.55,3.83833043]
[1772425108216,12.53381371,84.599,84.551,12.64922504]
[1772425109012,12.53381371,84.589,84.54,3.83833043]
[1772425109612,12.53381371,84.589,84.537,12.64922504]
[1772425109812,12.53381371,84.589,84.541,12.64922504]
[1772425110912,23.17451371,84.587,84.541,12.64922504]
[1772425112215,12.53381371,84.586,84.541,12.64922504]
[1772425112711,23.17331371,84.597,84.55,3.83833043]
[1772425112918,465.10742706,84.603,84.561,12.64922504]
[1772425115918,465.10742706,84.603,84.57,3.83416651]
[1772425116120,465.10742706,84.603,84.57,16.48339155]
[1772425116418,465.10742706,84.603,84.57,12.64922504]
[1772425117209,12.53381371,84.609,84.57,12.64922504]
[1772425117615,12.53381371,84.609,84.57,16.48339155]
[1772425118016,10.6369,84.617,84.571,12.64922504]
[1772425118816,16.36798022,84.61,84.571,12.64922504]
[1772425119720,12.53381371,84.609,84.571,12.64922504]
[1772425121818,8.57987149,84.618,84.571,12.64922504]
[1772425122020,8.57987149,84.618,84.58,3.83416651]
[1772425122215,8.57987149,84.618,84.581,12.64922504]
[1772425123025,8.57987149,84.618,84.59,16.48339155]
[1772425123323,8.57987149,84.618,84.591,12.64922504]
[1772425125922,10.6347,84.635,84.601,12.64922504]
[1772425130526,461.82451153,84.639,84.601,12.64922504]
[1772425131529,458.71394068,84.665,84.621,13.63718635]
[1772425131723,3.83416651,84.65,84.607,13.63718635]
[1772425131920,13.26441786,84.649,84.607,13.63718635]
[1772425132323,13.26441786,84.649,84.61,17.47135286]
[1772425132725,13.26441786,84.649,84.61,13.63718635]
[1772425135930,13.26441786,84.661,84.621,13.63718635]
[1772425136125,458.71394068,84.665,84.621,13.63718635]
[1772425137525,458.71394068,84.665,84.63,3.83416651]
[1772425137726,458.71394068,84.665,84.631,13.63718635]
[1772425137926,10.6283,84.685,84.641,13.63718635]
[1772425138923,10.6283,84.685,84.65,3.83416651]
[1772425139428,13.26441786,84.69,84.65,3.83416651]
[1772425140134,13.26441786,84.686,84.64,3.83416651]
[1772425140936,13.26441786,84.686,84.631,13.63718635]
[1772425141926,13.26441786,84.682,84.631,13.63718635]
[1772425144632,13.26441786,84.682,84.64,3.83416651]
[1772425144841,13.26441786,84.682,84.64,13.63718635]
[1772425145234,3.83416651,84.69,84.641,13.63718635]
[1772425145537,10.6273,84.693,84.641,13.63718635]
[1772425146041,10.6273,84.693,84.651,13.63718635]
[1772425147335,13.26441786,84.689,84.651,13.63718635]
[1772425147540,13.26441786,84.689,84.64,17.47135286]
[1772425147742,13.26441786,84.689,84.641,13.63718635]
[1772425148240,13.26441786,84.679,84.641,13.63718635]
[1772425148638,3.83416651,84.66,84.612,13.63718635]
[1772425148942,13.26441786,84.664,84.612,13.63718635]
[1772425149143,13.26441786,84.664,84.613,10.6373]
[1772425149437,10.91887913,84.7,84.587,13.63718635]
[1772425149438,13.26441786,84.639,84.587,13.63718635]
[1772425149640,13.26441786,84.639,84.577,313.04267926]
[1772425149641,3.83416651,84.62,84.574,13.63718635]
[1772425149843,3.83416651,84.62,84.576,13.63718635]
[1772425150040,3.83416651,84.62,84.581,13.63718635]
[1772425150437,13.26441786,84.629,84.581,13.63718635]
[1772425150643,13.26441786,84.629,84.582,13.63718635]
[1772425151044,13.26441786,84.643,84.584,10.6409]
[1772425151244,13.26441786,84.643,84.585,13.63718635]
[1772425152046,10.6328,84.65,84.59,13.63718635]
[1772425153440,13.26441786,84.657,84.592,10.64]
[1772425153644,13.26441786,84.657,84.593,13.34580447]
[1772425154646,9.123689,84.66,84.599,13.34580447]
[1772425154951,12.87912726,84.654,84.599,13.34580447]
[1772425155951,9.123689,84.64,84.599,13.34580447]
[1772425156562,9.123689,84.65,84.599,13.34580447]
[1772425156862,9.123689,84.66,84.599,13.34580447]
[1772425157160,12.87912726,84.669,84.599,13.34580447]
[1772425157751,9.123689,84.66,84.599,13.34580447]
[1772425157953,9.123689,84.66,84.609,12.59938456]
[1772425158152,13.76845876,84.659,84.609,12.59938456]
[1772425158556,10.6317,84.658,84.609,12.59938456]
[1772425160059,22.44043198,84.659,84.598,10.6392]
[1772425160060,13.76845876,84.653,84.598,10.6392]
[1772425160364,13.76845876,84.653,84.599,12.59938456]
[1772425161564,9.123689,84.65,84.599,12.59938456]
[1772425162158,13.76845876,84.653,84.599,12.59938456]
[1772425162355,8.6753209,84.659,84.61,12.59938456]
[1772425162558,22.89214776,84.67,84.61,12.59938456]
[1772425162559,22.44377966,84.669,84.61,12.59938456]
[1772425162757,13.76845876,84.668,84.61,12.59938456]
[1772425163762,13.76845876,84.666,84.612,10.6375]
[1772425163959,13.76845876,84.666,84.613,12.59938456]
[1772425164165,13.76845876,84.649,84.591,12.59938456]
[1772425165767,13.76845876,84.649,84.602,10.6387]
[1772425165967,13.76845876,84.649,84.603,12.59938456]
[1772425166266,13.76845876,84.663,84.603,12.59938456]
[1772425166966,13.76845876,84.663,84.608,12.59938456]
[1772425167773,13.76845876,84.659,84.608,12.59938456]
[1772425169767,13.76845876,84.639,84.571,21.95297082]
[1772425170075,13.76845876,84.619,84.568,12.59938456]
[1772425170976,13.76845876,84.609,84.56,287.93172016]
[1772425171568,13.76845876,84.589,84.538,12.59938456]
[1772425171972,13.76845876,84.589,84.539,12.59938456]
[1772425173175,13.76845876,84.589,84.544,23.24538456]
[1772425173872,13.76845876,84.589,84.545,12.59938456]
[1772425174270,13.76845876,84.604,84.549,12.59938456]
[1772425174676,13.76845876,84.604,84.55,10.6452]
[1772425175275,13.76845876,84.604,84.551,12.59938456]
[1772425175974,10.6387,84.603,84.551,12.59938456]
[1772425176171,9.123689,84.59,84.535,12.59938456]
[1772425176373,13.76845876,84.579,84.511,12.59938456]
[1772425176573,13.76845876,84.567,84.511,12.59938456]
[1772425176778,13.76845876,84.559,84.511,12.59938456]
[1772425178476,13.76845876,84.559,84.514,10.6498]
[1772425178680,13.76845876,84.559,84.489,315.37756374]
[1772425178681,13.76845876,84.573,84.515,12.59938456]
[1772425179177,13.76845876,84.573,84.516,10.6495]
[1772425179376,13.76845876,84.573,84.516,23.24888456]
[1772425179877,13.76845876,84.573,84.517,12.59938456]
[1772425180679,13.76845876,84.572,84.517,12.59938456]
[1772425182275,461.61957394,84.586,84.531,12.59938456]
[1772425183173,13.76845876,84.603,84.541,12.59938456]
[1772425183779,13.76845876,84.601,84.543,12.59938456]
[1772425185775,13.76845876,84.619,84.551,12.59938456]
[1772425186180,13.76845876,84.619,84.565,12.59938456]
[1772425186584,13.76845876,84.619,84.469,21.95297082]
[1772425186780,9.13808351,84.57,84.437,486.48443499]
[1772425186983,9.13808351,84.49,84.437,468.46092426]
[1772425187179,10.6531,84.488,84.417,18.02351073]
[1772425187477,8.54659154,84.47,84.417,18.02351073]
[1772425187679,10.6558,84.467,84.397,18.02351073]
[1772425188074,9.13808351,84.45,84.397,18.02351073]
[1772425188280,10.658,84.449,84.414,6.29e-05]
[1772425188475,165.7089,84.492,84.414,6.29e-05]
[1772425188476,9.13808351,84.47,84.414,18.02047791]
[1772425188686,9.13808351,84.48,84.414,18.02047791]
[1772425189889,9.13808351,84.43,84.356,17.92057859]
[1772425190184,9.13808351,84.44,84.361,17.92057859]
[1772425190981,9.13808351,84.46,84.381,18.47890184]
[1772425191184,9.13808351,84.48,84.381,18.47890184]
[1772425191185,9.13808351,84.45,84.381,18.47890184]
[1772425191986,9.13808351,84.47,84.391,18.47792743]
[1772425192181,9.13808351,84.46,84.391,18.47792743]
[1772425192384,9.13808351,84.47,84.393,18.47792743]
[1772425192586,9.13808351,84.49,84.411,18.47792743]
[1772425193785,9.13808351,84.49,84.416,10.6621]
[1772425193987,9.13808351,84.49,84.417,18.49698069]
[1772425194985,9.13808351,84.48,84.417,18.49698069]
[1772425195186,9.13808351,84.49,84.417,18.49698069]
[1772425195780,9.13808351,84.49,84.421,18.63295127]
[1772425196191,9.13808351,84.5,84.43,9.13808351]
[1772425196392,467.26288446,84.51,84.441,18.63214209]
[1772425196588,458.12480095,84.51,84.441,18.63214209]
[1772425196793,9.13808351,84.49,84.421,18.63214209]
[1772425197292,9.13808351,84.49,84.421,18.04065012]
[1772425197489,9.13808351,84.5,84.423,10.6613]
[1772425197688,9.13808351,84.5,84.42,9.13808351]
[1772425197893,467.26288446,84.51,84.44,9.13808351]
[1772425198088,458.12480095,84.51,84.442,10.6588]
[1772425199491,458.12480095,84.51,84.445,10.6585]
[1772425199692,467.26288446,84.51,84.446,18.26597892]
[1772425199889,9.13808351,84.47,84.407,18.26514336]
[1772425200087,9.13808351,84.46,84.408,18.26514336]
[1772425200393,9.13808351,84.47,84.408,18.26514336]
[1772425200590,9.13808351,84.47,84.325,35.46]
[1772425200591,9.13808351,84.5,84.431,18.26514336]
[1772425200794,467.26288446,84.51,84.441,18.26514336]
[1772425200994,458.12480095,84.51,84.451,18.17206403]
[1772425201187,9.13808351,84.56,84.4,9.13808351]
[1772425201188,9.13808351,84.53,84.469,18.17206403]
[1772425201693,9.13808351,84.53,84.471,18.17206403]
[1772425202289,9.13808351,84.52,84.451,18.17117988]
[1772425202595,9.13808351,84.49,84.421,18.17117988]
[1772425202797,9.13808351,84.49,84.434,10.6598]
[1772425203396,9.13808351,84.49,84.436,28.81948001]
[1772425203597,9.13808351,84.5,84.437,18.15978001]
[1772425204389,9.13808351,84.49,84.442,10.6589]
[1772425204697,10.6492,84.519,84.442,10.6589]
[1772425204698,9.13808351,84.5,84.442,10.6589]
[1772425205492,9.13808351,84.49,84.442,10.6589]
[1772425205686,9.13808351,84.5,84.442,28.81064448]
[1772425206299,9.13808351,84.5,84.42,9.13808351]
[1772425206300,462.86997216,84.551,84.459,18.15088566]
[1772425206502,9.13808351,84.53,84.459,18.15088566]
[1772425206998,9.13808351,84.54,84.474,18.14717774]
[1772425207701,9.13808351,84.54,84.482,10.6538]
[1772425207896,9.13808351,84.54,84.474,18.14717774]
[1772425209802,9.13808351,84.52,84.474,18.14717774]
[1772425210100,9.13808351,84.53,84.474,18.14717774]
[1772425210501,9.13808351,84.53,84.44,9.13808351]
[1772425210502,9.13808351,84.55,84.476,18.17110484]
[1772425210800,462.86997216,84.551,84.491,18.17136854]
[1772425211198,462.86997216,84.551,84.497,18.17136854]
[1772425211594,9.13808351,84.54,84.48,9.13808351]
[1772425211798,9.13808351,84.54,84.478,18.17136854]
[1772425211991,9.13808351,84.54,84.47,9.13808351]
[1772425212189,462.86997216,84.551,84.481,18.1705868]
[1772425212400,462.86997216,84.551,84.44,9.13808351]
[1772425212401,462.86997216,84.551,84.49,27.30867031]
[1772425212592,9.13808351,84.53,84.474,28.8253868]
[1772425212796,9.13808351,84.53,84.475,18.1705868]
[1772425213596,462.86997216,84.551,84.44,9.13808351]
[1772425213597,9.13808351,84.54,84.478,18.19456682]
[1772425213798,462.86997216,84.551,84.478,18.19456682]
[1772425214104,9.13808351,84.55,84.485,10.6534]
[1772425214294,9.13808351,84.55,84.486,18.19248059]
[1772425214902,9.13808351,84.54,84.486,18.19248059]
[1772425215804,10.6468,84.539,84.486,18.19248059]
[1772425215999,9.13808351,84.53,84.462,18.64925508]
[1772425216196,9.13808351,84.52,84.462,18.64925508]
[1772425216401,9.13808351,84.51,84.462,18.64925508]
[1772425216600,9.13808351,84.52,84.462,18.64925508]
[1772425219010,9.13808351,84.5,84.438,18.68142636]
[1772425219205,9.13808351,84.49,84.438,18.68142636]
[1772425219506,9.13808351,84.48,84.438,18.68142636]
[1772425219708,9.13808351,84.49,84.438,18.68142636]
[1772425221507,10.6571,84.457,84.42,31.92352177]
[1772425221699,9.13808351,84.46,84.42,31.92352177]
[1772425222203,9.13808351,84.47,84.42,31.92352177]
[1772425222797,9.13808351,84.46,84.42,31.92352177]
[1772425223003,9.13808351,84.47,84.42,31.92352177]
[1772425223797,9.13808351,84.47,84.421,18.66417008]
[1772425224003,9.13808351,84.48,84.421,18.66417008]
[1772425224305,19.78968351,84.5,84.436,18.66417008]
[1772425224498,9.13808351,84.46,84.42,31.92352177]
[1772425224902,9.13808351,84.49,84.427,18.66460189]
[1772425225913,10.6534,84.486,84.427,18.66460189]
[1772425226107,9.13808351,84.48,84.427,18.66460189]
[1772425227922,10.6543,84.479,84.427,18.66460189]
[1772425229417,10.6543,84.479,84.42,31.92352177]
[1772425229615,10.6555,84.47,84.42,31.92352177]
[1772425230227,9.13808351,84.49,84.423,18.6990167]
[1772425230620,9.13808351,84.51,84.431,18.6990167]
[1772425231324,10.6512,84.503,84.437,18.69187279]
[1772425231522,10.6512,84.503,84.441,18.10019533]
[1772425232320,10.6512,84.503,84.45,9.13808351]
[1772425232633,10.6512,84.503,84.42,31.92352177]
[1772425232634,4.49514804,84.531,84.47,9.13808351]
[1772425232926,13.20294009,84.542,84.47,9.13808351]
[1772425233318,13.20294009,84.55,84.47,9.13808351]
[1772425233518,9.13808351,84.54,84.47,9.13808351]
[1772425233930,4.49514804,84.55,84.481,18.40864588]
[1772425234323,4.49514804,84.55,84.491,18.40864588]
[1772425234524,10.6462,84.544,84.491,18.40864588]
[1772425236026,10.6462,84.544,84.49,9.13808351]
[1772425236529,10.6462,84.544,84.474,18.21289976]
[1772425236530,10.6462,84.544,84.48,9.14326002]
[1772425236729,10.6462,84.544,84.48,27.35615978]
[1772425237128,10.6462,84.544,84.481,18.25635389]
[1772425240123,10.6473,84.535,84.481,18.25635389]
[1772425242134,10.6485,84.525,84.481,18.25635389]
[1772425242530,4.49514804,84.548,84.481,18.25635389]
[1772425242731,4.49514804,84.547,84.481,18.25635389]
[1772425243035,4.49514804,84.549,84.481,18.25635389]
[1772425243633,10.6456,84.548,84.483,18.03703319]
[1772425245733,10.6467,84.539,84.483,18.03703319]
[1772425247535,10.6478,84.53,84.483,18.03703319]
[1772425247736,4.35626244,84.55,84.44,9.14326002]
[1772425247737,9.14326002,84.54,84.467,18.10751395]
[1772425248434,10.6506,84.509,84.467,18.10751395]
[1772425251441,10.6506,84.509,84.451,18.03971548]
[1772425252840,10.6506,84.509,84.452,18.03366525]
[1772425254038,9.14326002,84.51,84.452,18.03366525]
[1772425255839,10.6514,84.502,84.452,18.03366525]
[1772425257241,9.14326002,84.51,84.452,18.03366525]
[1772425257545,10.6524,84.494,84.452,18.03366525]
[1772425258639,10.6524,84.494,84.436,18.0524537]
[1772425259046,10.6513,84.503,84.436,18.0524537]
[1772425259542,10.6513,84.503,84.42,31.92352177]
[1772425259543,10.6513,84.503,84.455,18.05038171]
[1772425259741,10.65,84.513,84.455,18.05038171]
[1772425260845,10.65,84.513,84.457,18.0065037]
[1772425263247,10.6477,84.532,84.463,18.00635136]
[1772425264349,10.6487,84.524,84.474,18.00638967]
[1772425265449,10.6475,84.533,84.477,18.00537921]
[1772425268054,10.6475,84.533,84.479,18.02676662]
[1772425268249,10.6463,84.543,84.481,18.02676662]
[1772425269955,10.6463,84.543,84.484,10.6536]
[1772425270155,10.6463,84.543,84.485,18.09654048]
[1772425277460,10.6463,84.543,84.487,17.93458018]
[1772425278659,10.6472,84.535,84.487,17.93458018]
[1772425279857,9.14326002,84.52,84.459,17.65194514]
[1772425280156,473.77973118,84.551,84.459,17.65194514]
[1772425280157,9.14326002,84.51,84.459,17.65194514]
[1772425280364,10.6506,84.508,84.459,17.65194514]
[1772425281455,10.6494,84.518,84.459,17.65194514]
[1772425281760,4.35626244,84.541,84.471,17.69814613]
[1772425281961,4.35626244,84.54,84.481,17.6981736]
[1772425282156,4.35626244,84.549,84.481,17.6981736]
[1772425282559,4.35626244,84.549,84.491,17.6981736]
[1772425282761,4.35626244,84.55,84.491,17.6981736]
[1772425283960,10.6456,84.548,84.493,17.70371691]
[1772425285351,4.35626244,84.55,84.495,10.6521]
[1772425285550,10.6443,84.558,84.496,17.80352408]
[1772425285756,4.35986847,84.55,84.496,17.80352408]
[1772425286464,10.6454,84.549,84.496,17.80352408]
[1772425288760,9.14326002,84.54,84.482,17.78867616]
[1772425289162,4.35986847,84.539,84.482,17.78867616]
[1772425289357,9.14326002,84.54,84.482,17.78867616]
[1772425289864,22.15641784,84.55,84.486,17.78869976]
[1772425290067,4.35986847,84.55,84.486,17.78869976]
[1772425290864,4.35986847,84.55,84.491,10.6526]
[1772425291052,4.35986847,84.55,84.492,17.76765882]
[1772425292665,13.50312849,84.55,84.492,17.76765882]
[1772425294266,9.14326002,84.55,84.492,17.76765882]
[1772425294965,13.48544342,84.55,84.492,17.76765882]
[1772425295560,10.645,84.553,84.492,17.76765882]
[1772425297467,10.6454,84.549,84.492,17.76765882]
[1772425297968,9.14326002,84.57,84.504,18.02809889]
[1772425298566,9.13851222,84.57,84.504,18.02809889]
[1772425298767,10.6443,84.558,84.507,10.6506]
[1772425299070,10.6443,84.558,84.49,9.13851222]
[1772425299071,10.6443,84.558,84.508,18.17036153]
[1772425302067,9.13851222,84.56,84.508,18.17036153]
[1772425303773,10.6432,84.567,84.509,10.6504]
[1772425303967,10.6432,84.567,84.51,18.15100336]
[1772425305474,10.6432,84.567,84.514,10.6497]
[1772425305676,10.6432,84.567,84.515,18.15179277]
[1772425306072,10.6446,84.556,84.515,18.15179277]
[1772425307773,10.6446,84.556,84.496,18.12783104]
[1772425308170,10.6453,84.551,84.496,18.12783104]
[1772425308679,10.6461,84.544,84.496,18.12783104]
[1772425311673,10.6448,84.555,84.498,18.0740271]
[1772425312079,4.34698722,84.554,84.498,18.0740271]
[1772425312277,10.6467,84.539,84.498,18.0740271]
[1772425313272,9.13851222,84.55,84.498,18.0740271]
[1772425313471,10.6456,84.548,84.498,18.0740271]
[1772425314074,9.13851222,84.56,84.498,18.0740271]
[1772425314383,13.48549944,84.57,84.501,18.06911436]
[1772425314681,4.34698722,84.569,84.501,18.06911436]
[1772425314883,10.6443,84.558,84.501,18.06911436]
[1772425316481,10.6443,84.558,84.504,18.09202775]
[1772425317588,10.6443,84.558,84.507,18.08888953]
[1772425318985,10.6432,84.567,84.512,18.10535837]
[1772425319184,4.34698722,84.568,84.512,18.10535837]
[1772425319391,33.09436235,84.605,84.521,18.10535837]
[1772425319682,4.35283213,84.599,84.521,18.10535837]